[Event "*** SCC Grand Prix: Titled Tuesday Blitz"]
[Site "Chess.com"]
[Date "2020.06.02"]
[Round "6"]
[White "nonsopolo1"]
[Black "Nafania1"]
[Result "1/2-1/2"]
[WhiteElo "2242"]
[BlackElo "2423"]
[TimeControl "180+1"]
[EndTime "11:10:08 PDT"]
[Termination "Game drawn by repetition"]

1. e4 {[%clk 0:03:00.6]} 1... e6 {[%clk 0:02:58.1]} 2. d4 {[%clk 0:03:00.4]}
2... d5 {[%clk 0:02:55.5]} 3. Nd2 {[%clk 0:03:00]} 3... Be7 {[%clk 0:02:54]} 4.
Bd3 {[%clk 0:02:55.7]} 4... c5 {[%clk 0:02:53.4]} 5. dxc5 {[%clk 0:02:53.8]}
5... Nf6 {[%clk 0:02:53.2]} 6. Qe2 {[%clk 0:02:52.2]} 6... O-O {[%clk
0:02:52.4]} 7. Ngf3 {[%clk 0:02:50.3]} 7... a5 {[%clk 0:02:52.5]} 8. O-O {[%clk
0:02:49.7]} 8... Na6 {[%clk 0:02:52.6]} 9. e5 {[%clk 0:02:35.3]} 9... Nd7 {[%clk
0:02:52.2]} 10. c3 {[%clk 0:02:33.7]} 10... Naxc5 {[%clk 0:02:51.3]} 11. Bc2
{[%clk 0:02:33.6]} 11... b5 {[%clk 0:02:50.8]} 12. Rd1 {[%clk 0:02:25.4]} 12...
b4 {[%clk 0:02:44.8]} 13. Nf1 {[%clk 0:02:05.6]} 13... Ba6 {[%clk 0:02:44]} 14.
Qe3 {[%clk 0:02:05.7]} 14... bxc3 {[%clk 0:02:44.3]} 15. bxc3 {[%clk 0:01:59.9]}
15... Qc7 {[%clk 0:02:35.2]} 16. Ng3 {[%clk 0:01:47.7]} 16... Rac8 {[%clk
0:02:25.2]} 17. Bd2 {[%clk 0:01:41.7]} 17... Bc4 {[%clk 0:02:21.5]} 18. Qf4
{[%clk 0:01:38.4]} 18... Bd3 {[%clk 0:01:52.7]} 19. Ba4 {[%clk 0:00:48]} 19...
Nxa4 {[%clk 0:01:49.3]} 20. Qxa4 {[%clk 0:00:48.6]} 20... Nc5 {[%clk 0:01:23.7]}
21. Qf4 {[%clk 0:00:46.7]} 21... Bc2 {[%clk 0:01:20]} 22. Rf1 {[%clk 0:00:39.2]}
22... f5 {[%clk 0:01:11]} 23. Nd4 {[%clk 0:00:28.6]} 23... Bd3 {[%clk
0:01:01.5]} 24. Rfe1 {[%clk 0:00:26.1]} 24... Qd7 {[%clk 0:00:48.5]} 25. h4
{[%clk 0:00:24.7]} 25... Ba6 {[%clk 0:00:37.2]} 26. Qf3 {[%clk 0:00:23.6]} 26...
Nd3 {[%clk 0:00:29.4]} 27. Re3 {[%clk 0:00:20.7]} 27... Nb2 {[%clk 0:00:29.4]}
28. h5 {[%clk 0:00:18.4]} 28... Nc4 {[%clk 0:00:29.5]} 29. Re2 {[%clk
0:00:16.8]} 29... Nxd2 {[%clk 0:00:29.9]} 30. Rxd2 {[%clk 0:00:17.1]} 30... Rc7
{[%clk 0:00:26.9]} 31. h6 {[%clk 0:00:14.7]} 31... g6 {[%clk 0:00:25.6]} 32. Rc2
{[%clk 0:00:12.3]} 32... Rfc8 {[%clk 0:00:24.9]} 33. Rac1 {[%clk 0:00:11.9]}
33... Bg5 {[%clk 0:00:24.9]} 34. Rb1 {[%clk 0:00:11.2]} 34... Bxh6 {[%clk
0:00:25]} 35. Nge2 {[%clk 0:00:10.3]} 35... Rb7 {[%clk 0:00:22.8]} 36. Rcb2
{[%clk 0:00:09.3]} 36... Rxb2 {[%clk 0:00:22.2]} 37. Rxb2 {[%clk 0:00:10.2]}
37... Bc4 {[%clk 0:00:20.3]} 38. Qh3 {[%clk 0:00:09.8]} 38... Bg7 {[%clk
0:00:19.4]} 39. f4 {[%clk 0:00:09.2]} 39... Qe8 {[%clk 0:00:17.6]} 40. Qh4
{[%clk 0:00:07.6]} 40... Rb8 {[%clk 0:00:16.7]} 41. Rxb8 {[%clk 0:00:07.3]}
41... Qxb8 {[%clk 0:00:16.5]} 42. Qe7 {[%clk 0:00:07.3]} 42... Bxe2 {[%clk
0:00:14]} 43. Qxe6+ {[%clk 0:00:06]} 43... Kh8 {[%clk 0:00:13.6]} 44. Nxe2
{[%clk 0:00:05.7]} 44... Qb1+ {[%clk 0:00:13.5]} 45. Kh2 {[%clk 0:00:05.8]}
45... Qb8 {[%clk 0:00:13.2]} 46. Nd4 {[%clk 0:00:06]} 46... Qd8 {[%clk
0:00:12.3]} 47. Nc6 {[%clk 0:00:05.8]} 47... Qh4+ {[%clk 0:00:12.2]} 48. Kg1
{[%clk 0:00:06.1]} 48... Qe1+ {[%clk 0:00:12.4]} 49. Kh2 {[%clk 0:00:06.6]}
49... Qh4+ {[%clk 0:00:12.4]} 50. Kg1 {[%clk 0:00:06.4]} 50... Qe1+ {[%clk
0:00:12.4]} 51. Kh2 {[%clk 0:00:06.9]} 51... Qh4+ {[%clk 0:00:12.4]} 1/2-1/2

[Event "*** SCC Grand Prix: Titled Tuesday Blitz"]
[Site "Chess.com"]
[Date "2020.06.02"]
[Round "6"]
[White "AndrewDGreen"]
[Black "DariaVoit"]
[Result "1/2-1/2"]
[WhiteElo "2337"]
[BlackElo "2542"]
[TimeControl "180+1"]
[EndTime "11:10:10 PDT"]
[Termination "Game drawn by repetition"]

1. e4 {[%clk 0:03:00.9]} 1... e6 {[%clk 0:02:59.7]} 2. Nf3 {[%clk 0:02:59.8]}
2... d5 {[%clk 0:02:59.8]} 3. Nc3 {[%clk 0:02:58.3]} 3... d4 {[%clk 0:03:00]} 4.
Ne2 {[%clk 0:02:57]} 4... c5 {[%clk 0:03:00.6]} 5. c3 {[%clk 0:02:57.2]} 5...
Nc6 {[%clk 0:02:57]} 6. cxd4 {[%clk 0:02:56.6]} 6... cxd4 {[%clk 0:02:49.3]} 7.
Qa4 {[%clk 0:02:55.5]} 7... d3 {[%clk 0:02:25.6]} 8. Ned4 {[%clk 0:02:34.2]}
8... Bd7 {[%clk 0:02:24.5]} 9. Bxd3 {[%clk 0:02:31.6]} 9... Nb4 {[%clk 0:01:26]}
10. Bb5 {[%clk 0:02:27.7]} 10... Nd3+ {[%clk 0:01:23.2]} 11. Kf1 {[%clk
0:02:14.5]} 11... Bc5 {[%clk 0:00:42]} 12. Qc4 {[%clk 0:01:57.2]} 12... Bxd4
{[%clk 0:00:34.5]} 13. Qxd3 {[%clk 0:01:43.9]} 13... Bb6 {[%clk 0:00:22.6]} 14.
Ne5 {[%clk 0:01:33.9]} 14... Nf6 {[%clk 0:00:18.3]} 15. Nxd7 {[%clk 0:01:24.8]}
15... Nxd7 {[%clk 0:00:19.2]} 16. Ke2 {[%clk 0:01:19.4]} 16... a6 {[%clk
0:00:18.8]} 17. Ba4 {[%clk 0:01:11.3]} 17... Ke7 {[%clk 0:00:13.8]} 18. Bxd7
{[%clk 0:01:04.7]} 18... Qxd7 {[%clk 0:00:14.7]} 19. Qxd7+ {[%clk 0:01:05]}
19... Kxd7 {[%clk 0:00:15.6]} 20. d4 {[%clk 0:00:52.4]} 20... Rac8 {[%clk
0:00:09.4]} 21. Kd3 {[%clk 0:00:52.2]} 21... Rhd8 {[%clk 0:00:09]} 22. Be3
{[%clk 0:00:51.1]} 22... Ke7 {[%clk 0:00:08.6]} 23. Rhd1 {[%clk 0:00:34.9]}
23... Rd7 {[%clk 0:00:07.1]} 24. Rac1 {[%clk 0:00:32.6]} 24... Rcd8 {[%clk
0:00:06.9]} 25. Rc4 {[%clk 0:00:30.3]} 25... Ba7 {[%clk 0:00:03.5]} 26. Rdc1
{[%clk 0:00:26.8]} 26... Bxd4 {[%clk 0:00:01.7]} 27. Rxd4 {[%clk 0:00:20.9]}
27... Rxd4+ {[%clk 0:00:02]} 28. Bxd4 {[%clk 0:00:21.1]} 28... e5 {[%clk
0:00:02.9]} 29. Rc4 {[%clk 0:00:19.9]} 29... b5 {[%clk 0:00:03.3]} 30. Rc7+
{[%clk 0:00:12.6]} 30... Kf6 {[%clk 0:00:01.3]} 31. Rc6+ {[%clk 0:00:10.7]}
31... Kg5 {[%clk 0:00:01.8]} 32. Rxa6 {[%clk 0:00:10]} 32... Rxd4+ {[%clk
0:00:02.4]} 33. Ke3 {[%clk 0:00:09.8]} 33... Rc4 {[%clk 0:00:02.8]} 34. Rb6
{[%clk 0:00:08.5]} 34... b4 {[%clk 0:00:03]} 35. f3 {[%clk 0:00:06.6]} 35... f6
{[%clk 0:00:02.8]} 36. g3 {[%clk 0:00:06.5]} 36... h5 {[%clk 0:00:03]} 37. h4+
{[%clk 0:00:05.6]} 37... Kg6 {[%clk 0:00:03.4]} 38. Rb7 {[%clk 0:00:06.2]} 38...
Kh6 {[%clk 0:00:03.2]} 39. Kd3 {[%clk 0:00:06.6]} 39... Rd4+ {[%clk 0:00:03.2]}
40. Ke3 {[%clk 0:00:06.7]} 40... Rc4 {[%clk 0:00:03]} 41. Rb6 {[%clk 0:00:06.1]}
41... Kg6 {[%clk 0:00:02.7]} 42. Rb5 {[%clk 0:00:06.3]} 42... Kh6 {[%clk
0:00:02.4]} 43. f4 {[%clk 0:00:06.7]} 43... exf4+ {[%clk 0:00:01.7]} 44. gxf4
{[%clk 0:00:07.6]} 44... Kg6 {[%clk 0:00:01.8]} 45. a4 {[%clk 0:00:04.9]} 45...
bxa3 {[%clk 0:00:01.5]} 46. bxa3 {[%clk 0:00:05.3]} 46... Rc3+ {[%clk
0:00:01.4]} 47. Kd4 {[%clk 0:00:05.6]} 47... Rxa3 {[%clk 0:00:02.3]} 48. f5+
{[%clk 0:00:04.5]} 48... Kh6 {[%clk 0:00:02]} 49. Rb7 {[%clk 0:00:04.8]} 49...
Rh3 {[%clk 0:00:02.4]} 50. Rb8 {[%clk 0:00:04.3]} 50... Kh7 {[%clk 0:00:03]} 51.
e5 {[%clk 0:00:03]} 51... Rxh4+ {[%clk 0:00:02.5]} 52. Kd5 {[%clk 0:00:03.5]}
52... fxe5 {[%clk 0:00:03.4]} 53. Kxe5 {[%clk 0:00:03.9]} 53... Rg4 {[%clk
0:00:03.8]} 54. Rb7 {[%clk 0:00:03.8]} 54... Kh6 {[%clk 0:00:04.5]} 55. Rb6+
{[%clk 0:00:02.7]} 55... Kh7 {[%clk 0:00:04.8]} 56. Rb7 {[%clk 0:00:03.2]} 56...
Rg5 {[%clk 0:00:04.5]} 57. Kf4 {[%clk 0:00:03.5]} 57... Rg4+ {[%clk 0:00:04.4]}
58. Ke5 {[%clk 0:00:03.8]} 1/2-1/2

[Event "*** SCC Grand Prix: Titled Tuesday Blitz"]
[Site "Chess.com"]
[Date "2020.06.02"]
[Round "6"]
[White "freshfoodcompany"]
[Black "Irishchessman16"]
[Result "0-1"]
[WhiteElo "2213"]
[BlackElo "2421"]
[TimeControl "180+1"]
[EndTime "11:10:10 PDT"]
[Termination "Irishchessman16 won by resignation"]

1. d4 {[%clk 0:03:00.9]} 1... d5 {[%clk 0:02:56.5]} 2. c4 {[%clk 0:03:01]} 2...
c6 {[%clk 0:02:55.9]} 3. Nc3 {[%clk 0:03:01]} 3... Nf6 {[%clk 0:02:55.5]} 4. Nf3
{[%clk 0:03:00.2]} 4... e6 {[%clk 0:02:55.8]} 5. Bg5 {[%clk 0:02:59.8]} 5... h6
{[%clk 0:02:53.4]} 6. Bh4 {[%clk 0:02:59]} 6... g5 {[%clk 0:02:51.3]} 7. Bg3
{[%clk 0:02:58.9]} 7... dxc4 {[%clk 0:02:51.8]} 8. e4 {[%clk 0:02:58.5]} 8... b5
{[%clk 0:02:49.5]} 9. Be2 {[%clk 0:02:57.7]} 9... Bb7 {[%clk 0:02:48.2]} 10. h4
{[%clk 0:02:56.4]} 10... g4 {[%clk 0:02:47.8]} 11. Ne5 {[%clk 0:02:56.1]} 11...
Nbd7 {[%clk 0:02:47.6]} 12. Nxg4 {[%clk 0:02:48.5]} 12... b4 {[%clk 0:02:47.2]}
13. Nxf6+ {[%clk 0:02:44.2]} 13... Nxf6 {[%clk 0:02:46.6]} 14. Na4 {[%clk
0:02:42]} 14... Nxe4 {[%clk 0:02:46.2]} 15. Be5 {[%clk 0:02:37.2]} 15... f6
{[%clk 0:02:44.5]} 16. Bh5+ {[%clk 0:02:34.4]} 16... Ke7 {[%clk 0:02:44.4]} 17.
Qf3 {[%clk 0:02:22.1]} 17... c5 {[%clk 0:02:38]} 18. Bxf6+ {[%clk 0:02:14.7]}
18... Nxf6 {[%clk 0:02:36]} 19. Qxb7+ {[%clk 0:02:11.6]} 19... Nd7 {[%clk
0:02:36]} 20. Nxc5 {[%clk 0:02:02.6]} 20... Qc8 {[%clk 0:02:34.6]} 21. Qe4
{[%clk 0:01:45.4]} 21... Nxc5 {[%clk 0:02:30]} 22. dxc5 {[%clk 0:01:45.1]} 22...
Bg7 {[%clk 0:02:29.3]} 23. O-O {[%clk 0:01:35.2]} 23... Qxc5 {[%clk 0:02:26.7]}
24. Bg4 {[%clk 0:01:29.5]} 24... Qd5 {[%clk 0:02:16.2]} 25. Qg6 {[%clk
0:01:23.4]} 25... Bd4 {[%clk 0:02:14.3]} 26. Bf3 {[%clk 0:01:07.3]} 26... Rag8
{[%clk 0:02:12.3]} 27. Qxg8 {[%clk 0:00:58.5]} 27... Rxg8 {[%clk 0:02:11.8]} 28.
Bxd5 {[%clk 0:00:55.1]} 28... exd5 {[%clk 0:02:12.7]} 29. Rad1 {[%clk
0:00:49.8]} 29... Bxb2 {[%clk 0:02:09.1]} 30. Rxd5 {[%clk 0:00:49.6]} 30... c3
{[%clk 0:02:09.5]} 31. Rc5 {[%clk 0:00:46.1]} 31... Kd6 {[%clk 0:02:07]} 32. Rc4
{[%clk 0:00:45.2]} 32... a5 {[%clk 0:02:05.7]} 33. Rd1+ {[%clk 0:00:43.8]} 33...
Ke5 {[%clk 0:02:05.8]} 34. Rc5+ {[%clk 0:00:41.6]} 34... Ke4 {[%clk 0:02:05.6]}
35. f3+ {[%clk 0:00:38.5]} 35... Ke3 {[%clk 0:02:05.5]} 36. Re5+ {[%clk
0:00:37.5]} 36... Kf4 {[%clk 0:02:04.1]} 37. Re4+ {[%clk 0:00:37.2]} 37... Kg3
{[%clk 0:01:59]} 38. Rdd4 {[%clk 0:00:33.2]} 38... h5 {[%clk 0:01:59.1]} 39. Rc4
{[%clk 0:00:27.6]} 39... a4 {[%clk 0:01:35.1]} 40. Re1 {[%clk 0:00:17]} 40... b3
{[%clk 0:00:51.3]} 41. axb3 {[%clk 0:00:16.5]} 41... axb3 {[%clk 0:00:50.4]} 42.
Re3 {[%clk 0:00:12.5]} 42... c2 {[%clk 0:00:34.9]} 43. f4+ {[%clk 0:00:11.8]}
43... Kg4 {[%clk 0:00:35.1]} 44. Rf3 {[%clk 0:00:05.8]} 44... c1=Q+ {[%clk
0:00:32.1]} 45. Rxc1 {[%clk 0:00:05.7]} 45... Bxc1 {[%clk 0:00:33]} 46. Rxb3
{[%clk 0:00:04]} 46... Bxf4 {[%clk 0:00:31.6]} 47. Rb4 {[%clk 0:00:03.1]} 47...
Rc8 {[%clk 0:00:29.9]} 48. Kf2 {[%clk 0:00:02.9]} 48... Rc2+ {[%clk 0:00:29.2]}
49. Kf1 {[%clk 0:00:03.1]} 49... Kg3 {[%clk 0:00:28]} 50. Rb3+ {[%clk
0:00:03.5]} 50... Kxh4 {[%clk 0:00:28]} 51. Rb4 {[%clk 0:00:03.4]} 51... Kg5
{[%clk 0:00:27.8]} 52. Rb5+ {[%clk 0:00:03.6]} 52... Kg4 {[%clk 0:00:28]} 53.
Rb4 {[%clk 0:00:03.9]} 53... h4 {[%clk 0:00:27.9]} 54. Rb3 {[%clk 0:00:04]}
54... Rc4 {[%clk 0:00:24.5]} 55. Rd3 {[%clk 0:00:03.6]} 55... Bg3 {[%clk
0:00:24.4]} 56. Ke2 {[%clk 0:00:03.5]} 56... Re4+ {[%clk 0:00:23.7]} 57. Kd2
{[%clk 0:00:02.9]} 57... Be1+ {[%clk 0:00:23.4]} 58. Kd1 {[%clk 0:00:03]} 58...
Bb4 {[%clk 0:00:23]} 59. Rf3 {[%clk 0:00:03.1]} 59... Re1+ {[%clk 0:00:21.9]}
60. Kc2 {[%clk 0:00:03.4]} 60... Re2+ {[%clk 0:00:21.1]} 61. Kb3 {[%clk
0:00:03.1]} 61... Rxg2 {[%clk 0:00:20.6]} 62. Rd3 {[%clk 0:00:03.3]} 62... Rg3
{[%clk 0:00:17.1]} 0-1

[Event "*** SCC Grand Prix: Titled Tuesday Blitz"]
[Site "Chess.com"]
[Date "2020.06.02"]
[Round "6"]
[White "korbul"]
[Black "Ali_rastbod"]
[Result "1-0"]
[WhiteElo "2490"]
[BlackElo "2638"]
[TimeControl "180+1"]
[EndTime "11:10:11 PDT"]
[Termination "korbul won by resignation"]

1. d4 {[%clk 0:03:00.9]} 1... Nf6 {[%clk 0:02:59.6]} 2. c4 {[%clk 0:03:00.2]}
2... e6 {[%clk 0:02:59.5]} 3. Nf3 {[%clk 0:02:59.8]} 3... b6 {[%clk 0:02:58.9]}
4. g3 {[%clk 0:02:59.7]} 4... Ba6 {[%clk 0:02:58.7]} 5. Nbd2 {[%clk 0:02:59.3]}
5... c5 {[%clk 0:02:50.5]} 6. e4 {[%clk 0:02:54.1]} 6... cxd4 {[%clk 0:02:23.5]}
7. e5 {[%clk 0:02:54]} 7... Ng8 {[%clk 0:02:24.1]} 8. Bg2 {[%clk 0:02:51.6]}
8... Nc6 {[%clk 0:02:22.3]} 9. O-O {[%clk 0:02:48.2]} 9... Qc7 {[%clk
0:02:22.4]} 10. Re1 {[%clk 0:02:47.1]} 10... Nge7 {[%clk 0:02:22.8]} 11. a3
{[%clk 0:02:46.7]} 11... Ng6 {[%clk 0:02:21.3]} 12. Qe2 {[%clk 0:02:46.4]} 12...
Na5 {[%clk 0:02:19.5]} 13. Nxd4 {[%clk 0:02:36.8]} 13... Rc8 {[%clk 0:02:18.7]}
14. b3 {[%clk 0:02:36.2]} 14... Be7 {[%clk 0:02:14.6]} 15. Bb2 {[%clk
0:02:35.6]} 15... O-O {[%clk 0:02:14.4]} 16. Rac1 {[%clk 0:02:31.8]} 16... d6
{[%clk 0:02:13.2]} 17. Nb5 {[%clk 0:02:24.4]} 17... Bxb5 {[%clk 0:02:12]} 18.
cxb5 {[%clk 0:02:24.3]} 18... Qb8 {[%clk 0:02:12.6]} 19. exd6 {[%clk 0:02:21.4]}
19... Bxd6 {[%clk 0:02:08.9]} 20. b4 {[%clk 0:02:20.9]} 20... Nb7 {[%clk
0:02:06.7]} 21. Rc6 {[%clk 0:02:12.5]} 21... Nd8 {[%clk 0:01:59.8]} 22. Rxc8
{[%clk 0:02:02.4]} 22... Qxc8 {[%clk 0:02:00.7]} 23. Nc4 {[%clk 0:02:01.8]}
23... Be7 {[%clk 0:01:58.6]} 24. h4 {[%clk 0:01:58.5]} 24... Re8 {[%clk
0:01:58.1]} 25. h5 {[%clk 0:01:58.3]} 25... Nf8 {[%clk 0:01:58.6]} 26. h6 {[%clk
0:01:58.5]} 26... Bf6 {[%clk 0:01:51.9]} 27. hxg7 {[%clk 0:01:55.6]} 27... Bxg7
{[%clk 0:01:52]} 28. Bxg7 {[%clk 0:01:50.7]} 28... Kxg7 {[%clk 0:01:52.9]} 29.
Nd6 {[%clk 0:01:50.9]} 29... Qd7 {[%clk 0:01:53.2]} 30. Nxe8+ {[%clk 0:01:46.5]}
30... Qxe8 {[%clk 0:01:54.1]} 31. Qe5+ {[%clk 0:01:41.9]} 31... Kg8 {[%clk
0:01:50.4]} 32. Qb8 {[%clk 0:01:39.5]} 32... Qe7 {[%clk 0:01:49.2]} 33. Rc1
{[%clk 0:01:34.5]} 33... e5 {[%clk 0:01:34]} 34. Rc8 {[%clk 0:01:33.1]} 34...
Nfe6 {[%clk 0:01:33.2]} 35. Qxe5 {[%clk 0:01:25.1]} 35... Qd7 {[%clk 0:01:30.1]}
36. Qb8 {[%clk 0:01:21.2]} 36... Kg7 {[%clk 0:01:28.9]} 37. Qe5+ {[%clk
0:01:17.8]} 37... Kg8 {[%clk 0:01:22.4]} 38. Rc4 {[%clk 0:01:05.8]} 38... h5
{[%clk 0:00:17.7]} 39. Bd5 {[%clk 0:01:00.9]} 39... Kf8 {[%clk 0:00:15.2]} 40.
Kg2 {[%clk 0:00:53.8]} 40... Ke7 {[%clk 0:00:09.8]} 41. f4 {[%clk 0:00:49.4]}
41... Qd6 {[%clk 0:00:08]} 42. Qxd6+ {[%clk 0:00:43.2]} 42... Kxd6 {[%clk
0:00:08.9]} 43. Bxe6 {[%clk 0:00:42.4]} 43... Nxe6 {[%clk 0:00:08.6]} 44. Rc8
{[%clk 0:00:42]} 44... Nc7 {[%clk 0:00:05.7]} 45. Rh8 {[%clk 0:00:40.3]} 45...
Nxb5 {[%clk 0:00:01.8]} 46. Rxh5 {[%clk 0:00:35.5]} 46... Nxa3 {[%clk 0:00:02]}
47. Rh8 {[%clk 0:00:34.8]} 47... Nc2 {[%clk 0:00:01.5]} 48. Ra8 {[%clk
0:00:32.6]} 48... Nxb4 {[%clk 0:00:01.9]} 49. Rxa7 {[%clk 0:00:32.7]} 49... f5
{[%clk 0:00:02.8]} 50. Rb7 {[%clk 0:00:28.6]} 50... Nd5 {[%clk 0:00:02.8]} 51.
Kh3 {[%clk 0:00:28.7]} 51... Kc6 {[%clk 0:00:02.9]} 52. Rf7 {[%clk 0:00:27.8]}
52... Ne3 {[%clk 0:00:03.4]} 53. Kh4 {[%clk 0:00:25.8]} 53... b5 {[%clk
0:00:03.2]} 54. Kg5 {[%clk 0:00:26]} 54... b4 {[%clk 0:00:03.7]} 55. Re7 {[%clk
0:00:25.7]} 55... Nf1 {[%clk 0:00:04.2]} 56. Kxf5 {[%clk 0:00:24.8]} 56... Nxg3+
{[%clk 0:00:04.6]} 57. Ke5 {[%clk 0:00:24.9]} 57... Kc5 {[%clk 0:00:04.2]} 58.
Rc7+ {[%clk 0:00:24.9]} 58... Kb5 {[%clk 0:00:04.7]} 59. f5 {[%clk 0:00:25.3]}
59... Nh5 {[%clk 0:00:03.6]} 60. Rh7 {[%clk 0:00:24.2]} 1-0

[Event "*** SCC Grand Prix: Titled Tuesday Blitz"]
[Site "Chess.com"]
[Date "2020.06.02"]
[Round "6"]
[White "Muradore"]
[Black "LiemLe"]
[Result "1/2-1/2"]
[WhiteElo "2616"]
[BlackElo "2896"]
[TimeControl "180+1"]
[EndTime "11:10:14 PDT"]
[Termination "Game drawn by repetition"]

1. e4 {[%clk 0:02:59.9]} 1... c5 {[%clk 0:02:59.5]} 2. c3 {[%clk 0:02:59.6]}
2... Nf6 {[%clk 0:02:58.3]} 3. e5 {[%clk 0:02:59.2]} 3... Nd5 {[%clk 0:02:58.5]}
4. Nf3 {[%clk 0:03:00.1]} 4... Nc6 {[%clk 0:02:58.1]} 5. g3 {[%clk 0:02:59.6]}
5... d6 {[%clk 0:02:53.7]} 6. exd6 {[%clk 0:02:59.3]} 6... e6 {[%clk 0:02:54.2]}
7. Bg2 {[%clk 0:02:58.9]} 7... Bxd6 {[%clk 0:02:54.1]} 8. O-O {[%clk 0:02:59.8]}
8... O-O {[%clk 0:02:54.2]} 9. Na3 {[%clk 0:03:00]} 9... b6 {[%clk 0:02:47.9]}
10. Nc4 {[%clk 0:02:59.1]} 10... Be7 {[%clk 0:02:45.1]} 11. a4 {[%clk
0:02:57.6]} 11... Bb7 {[%clk 0:02:41]} 12. d3 {[%clk 0:02:56.7]} 12... Rc8
{[%clk 0:02:39.6]} 13. Re1 {[%clk 0:02:56.2]} 13... h6 {[%clk 0:02:37.6]} 14.
Qb3 {[%clk 0:02:55.2]} 14... a6 {[%clk 0:02:02.5]} 15. Nfe5 {[%clk 0:02:41.2]}
15... Nxe5 {[%clk 0:02:02.3]} 16. Nxe5 {[%clk 0:02:40.9]} 16... Qc7 {[%clk
0:01:58.5]} 17. Nf3 {[%clk 0:02:34.9]} 17... Rfd8 {[%clk 0:01:55]} 18. d4 {[%clk
0:02:34.7]} 18... cxd4 {[%clk 0:01:47.8]} 19. Nxd4 {[%clk 0:02:34.5]} 19... Bc5
{[%clk 0:01:47.7]} 20. Nf3 {[%clk 0:02:33.9]} 20... Bc6 {[%clk 0:01:41.3]} 21.
Qc4 {[%clk 0:02:25.4]} 21... Qa7 {[%clk 0:01:38.8]} 22. Qg4 {[%clk 0:02:20.1]}
22... Nf6 {[%clk 0:01:29]} 23. Qh4 {[%clk 0:02:18.3]} 23... Qb7 {[%clk
0:01:22.7]} 24. Qf4 {[%clk 0:02:16.1]} 24... Bd6 {[%clk 0:01:13]} 25. Qe3 {[%clk
0:02:12]} 25... Ng4 {[%clk 0:01:12.9]} 26. Qe2 {[%clk 0:02:10]} 26... Bc5 {[%clk
0:01:13.4]} 27. Rf1 {[%clk 0:02:10]} 27... b5 {[%clk 0:01:07.6]} 28. axb5 {[%clk
0:02:06.5]} 28... Bxb5 {[%clk 0:01:08.5]} 29. Nd4 {[%clk 0:01:57.7]} 29... Bxe2
{[%clk 0:00:58.2]} 30. Bxb7 {[%clk 0:01:57]} 30... Bxf1 {[%clk 0:00:57.9]} 31.
Bxc8 {[%clk 0:01:56.6]} 31... Rxc8 {[%clk 0:00:58.3]} 32. Kxf1 {[%clk
0:01:53.8]} 32... Bxd4 {[%clk 0:00:58.4]} 33. cxd4 {[%clk 0:01:53.6]} 33... Rc2
{[%clk 0:00:56.8]} 34. Be3 {[%clk 0:01:49.1]} 34... Nxh2+ {[%clk 0:00:53.3]} 35.
Ke1 {[%clk 0:01:48.3]} 35... Rxb2 {[%clk 0:00:43.5]} 36. Rxa6 {[%clk 0:01:47.2]}
36... g5 {[%clk 0:00:41.1]} 37. d5 {[%clk 0:01:45.4]} 37... exd5 {[%clk
0:00:37.3]} 38. Rxh6 {[%clk 0:01:45.4]} 38... Nf3+ {[%clk 0:00:36.7]} 39. Kd1
{[%clk 0:01:36.3]} 39... d4 {[%clk 0:00:37.6]} 40. Bc1 {[%clk 0:01:35.2]} 40...
Rxf2 {[%clk 0:00:35]} 41. Rf6 {[%clk 0:01:34.4]} 41... Rf1+ {[%clk 0:00:32.4]}
42. Ke2 {[%clk 0:01:34]} 42... Rxc1 {[%clk 0:00:32.4]} 43. Kxf3 {[%clk
0:01:32.5]} 43... Kg7 {[%clk 0:00:25.5]} 44. Rd6 {[%clk 0:01:31.6]} 44... Rc3+
{[%clk 0:00:16.9]} 45. Kg4 {[%clk 0:01:29.4]} 45... Rd3 {[%clk 0:00:17.1]} 46.
Kxg5 {[%clk 0:01:21.9]} 46... Rxg3+ {[%clk 0:00:17.2]} 47. Kf4 {[%clk
0:01:22.5]} 47... Rh3 {[%clk 0:00:16.9]} 48. Ke5 {[%clk 0:01:19.8]} 48... Rh4
{[%clk 0:00:17]} 49. Rd8 {[%clk 0:01:15.4]} 49... Kg6 {[%clk 0:00:09.2]} 50.
Rg8+ {[%clk 0:01:14.4]} 50... Kh7 {[%clk 0:00:09.2]} 51. Rd8 {[%clk 0:01:13.5]}
51... Kg7 {[%clk 0:00:08.7]} 52. Kf5 {[%clk 0:01:11.9]} 52... Rh5+ {[%clk
0:00:07.4]} 53. Ke4 {[%clk 0:01:11.2]} 53... Rh1 {[%clk 0:00:05.6]} 54. Ke5
{[%clk 0:01:07.8]} 54... Re1+ {[%clk 0:00:05.1]} 55. Kf5 {[%clk 0:01:07.3]}
55... Rd1 {[%clk 0:00:05.6]} 56. Rd6 {[%clk 0:01:05.7]} 56... d3 {[%clk
0:00:06.5]} 57. Ke4 {[%clk 0:01:05.9]} 57... f6 {[%clk 0:00:06.6]} 58. Rd5
{[%clk 0:01:00.8]} 58... Kg6 {[%clk 0:00:06.7]} 59. Ke3 {[%clk 0:01:00.9]} 59...
f5 {[%clk 0:00:06.8]} 60. Kf4 {[%clk 0:00:58.6]} 60... Rf1+ {[%clk 0:00:06.2]}
61. Ke3 {[%clk 0:00:58.5]} 61... Rd1 {[%clk 0:00:07.1]} 62. Kf4 {[%clk
0:00:58.6]} 62... d2 {[%clk 0:00:07.6]} 63. Ke3 {[%clk 0:00:50.4]} 63... Kg5
{[%clk 0:00:08.5]} 64. Ke2 {[%clk 0:00:50.7]} 64... Rh1 {[%clk 0:00:08.9]} 65.
Kxd2 {[%clk 0:00:47.3]} 65... Kg4 {[%clk 0:00:09.3]} 66. Ke2 {[%clk 0:00:47.1]}
66... f4 {[%clk 0:00:09.5]} 67. Kf2 {[%clk 0:00:46.8]} 67... Rh2+ {[%clk
0:00:09.3]} 68. Kg1 {[%clk 0:00:46.9]} 68... Rb2 {[%clk 0:00:09.4]} 69. Rd3
{[%clk 0:00:47.1]} 69... Ra2 {[%clk 0:00:09.3]} 70. Rc3 {[%clk 0:00:47.2]} 70...
f3 {[%clk 0:00:09.5]} 71. Rc8 {[%clk 0:00:46.9]} 71... Kf4 {[%clk 0:00:09.4]}
72. Rf8+ {[%clk 0:00:45.6]} 72... Kg3 {[%clk 0:00:09.7]} 73. Rg8+ {[%clk
0:00:45.4]} 73... Kf4 {[%clk 0:00:10.1]} 74. Rf8+ {[%clk 0:00:45.7]} 74... Kg3
{[%clk 0:00:10.6]} 75. Rg8+ {[%clk 0:00:45.6]} 75... Kf4 {[%clk 0:00:11.1]} 76.
Rf8+ {[%clk 0:00:45.7]} 1/2-1/2